[Event "Early-Titled-Tuesday-Blitz-August-29-2023"]
[Site "Chess.com"]
[Date "2023.08.29"]
[Round "1"]
[White "RobertoJBM"]
[Black "Balla_Tamas"]
[Result "1-0"]
[WhiteElo "2836"]
[BlackElo "2443"]
[TimeControl "180+1"]
[EndTime "8:07:43 PDT"]
[Termination "RobertoJBM won by resignation"]

1. d4 {[%clk 0:03:00.9]} 1... d5 {[%clk 0:02:58.3]} 2. c4 {[%clk 0:03:00.4]}
2... e6 {[%clk 0:02:58.5]} 3. Nc3 {[%clk 0:02:59.8]} 3... c5 {[%clk 0:02:57.6]}
4. cxd5 {[%clk 0:02:59.1]} 4... exd5 {[%clk 0:02:58.5]} 5. Nf3 {[%clk
0:02:58.7]} 5... Nc6 {[%clk 0:02:58.1]} 6. e3 {[%clk 0:02:58.9]} 6... Nf6 {[%clk
0:02:57.3]} 7. Be2 {[%clk 0:02:57.7]} 7... Bd6 {[%clk 0:02:55.7]} 8. dxc5 {[%clk
0:02:57.1]} 8... Bxc5 {[%clk 0:02:56.6]} 9. O-O {[%clk 0:02:57.3]} 9... O-O
{[%clk 0:02:56.2]} 10. a3 {[%clk 0:02:57.1]} 10... Bg4 {[%clk 0:02:53.4]} 11. b4
{[%clk 0:02:55.3]} 11... Bb6 {[%clk 0:02:47]} 12. Na4 {[%clk 0:02:55.1]} 12...
Bc7 {[%clk 0:02:46.2]} 13. Bb2 {[%clk 0:02:54.3]} 13... Ne4 {[%clk 0:02:43.4]}
14. Rc1 {[%clk 0:02:50.5]} 14... Qd6 {[%clk 0:02:38.7]} 15. g3 {[%clk
0:02:48.2]} 15... Bh3 {[%clk 0:02:37.9]} 16. Re1 {[%clk 0:02:47]} 16... Rfe8
{[%clk 0:02:32.6]} 17. Nd4 {[%clk 0:02:29.1]} 17... Qg6 {[%clk 0:01:53]} 18. Bh5
{[%clk 0:02:00.2]} 18... Qg5 {[%clk 0:01:43.5]} 19. f4 {[%clk 0:01:59.5]} 19...
Qh6 {[%clk 0:01:34.3]} 20. Bg4 {[%clk 0:01:52.2]} 20... Nxd4 {[%clk 0:01:03.2]}
21. Bxd4 {[%clk 0:01:45]} 21... Bxg4 {[%clk 0:00:58.5]} 22. Qxg4 {[%clk
0:01:44.3]} 22... Bb6 {[%clk 0:00:58.7]} 23. Nxb6 {[%clk 0:01:08.8]} 23... axb6
{[%clk 0:00:59.6]} 24. Rc7 {[%clk 0:01:09.5]} 24... Rxa3 {[%clk 0:00:49.6]} 25.
Rc8 {[%clk 0:00:58.7]} 25... Ra8 {[%clk 0:00:49.3]} 26. Rec1 {[%clk 0:00:57.8]}
26... Raxc8 {[%clk 0:00:37]} 27. Rxc8 {[%clk 0:00:52.9]} 27... Nd6 {[%clk
0:00:28.8]} 28. Rxe8+ {[%clk 0:00:28.6]} 28... Nxe8 {[%clk 0:00:29.7]} 29. Qd7
{[%clk 0:00:24.8]} 29... Qc6 {[%clk 0:00:29.1]} 30. Qxc6 {[%clk 0:00:22.5]}
30... bxc6 {[%clk 0:00:30]} 31. Bxb6 {[%clk 0:00:23.2]} 31... Nd6 {[%clk
0:00:26.2]} 32. Kg2 {[%clk 0:00:20.6]} 32... Kf8 {[%clk 0:00:22.9]} 33. Kf3
{[%clk 0:00:20.9]} 33... Ke7 {[%clk 0:00:21]} 34. Bc5 {[%clk 0:00:21.4]} 34...
Ke6 {[%clk 0:00:20.7]} 35. Bxd6 {[%clk 0:00:21.3]} 35... Kxd6 {[%clk 0:00:21.6]}
36. e4 {[%clk 0:00:21.4]} 36... dxe4+ {[%clk 0:00:09.1]} 37. Kxe4 {[%clk
0:00:22.3]} 37... c5 {[%clk 0:00:09.5]} 38. bxc5+ {[%clk 0:00:19.2]} 38... Kxc5
{[%clk 0:00:10.4]} 39. Ke5 {[%clk 0:00:19.9]} 39... Kc6 {[%clk 0:00:10.6]} 40.
f5 {[%clk 0:00:18.7]} 40... Kd7 {[%clk 0:00:10.8]} 41. g4 {[%clk 0:00:17.5]}
41... Ke7 {[%clk 0:00:08.8]} 42. h4 {[%clk 0:00:17.2]} 42... h5 {[%clk
0:00:03.7]} 43. gxh5 {[%clk 0:00:14.8]} 43... f6+ {[%clk 0:00:02.6]} 44. Kd5
{[%clk 0:00:15.3]} 44... Kd7 {[%clk 0:00:03.1]} 45. h6 {[%clk 0:00:15.4]} 45...
gxh6 {[%clk 0:00:02.9]} 46. h5 {[%clk 0:00:16]} 46... Kc7 {[%clk 0:00:01.5]} 47.
Ke6 {[%clk 0:00:16.2]} 1-0

[Event "Early-Titled-Tuesday-Blitz-August-29-2023"]
[Site "Chess.com"]
[Date "2023.08.29"]
[Round "1"]
[White "Kirill_Klukin"]
[Black "whiteglovethief"]
[Result "1-0"]
[WhiteElo "2802"]
[BlackElo "2426"]
[TimeControl "180+1"]
[EndTime "8:07:43 PDT"]
[Termination "Kirill_Klukin won on time"]

1. Nf3 {[%clk 0:03:00.4]} 1... d5 {[%clk 0:02:59.7]} 2. c4 {[%clk 0:02:59.9]}
2... c6 {[%clk 0:02:59.1]} 3. e3 {[%clk 0:02:58.8]} 3... Nf6 {[%clk 0:02:59.2]}
4. b3 {[%clk 0:02:59.3]} 4... Bg4 {[%clk 0:02:54.4]} 5. Bb2 {[%clk 0:02:58.6]}
5... e6 {[%clk 0:02:54.1]} 6. h3 {[%clk 0:02:41.1]} 6... Bxf3 {[%clk 0:02:51.4]}
7. Qxf3 {[%clk 0:02:40.4]} 7... Nbd7 {[%clk 0:02:52.3]} 8. g4 {[%clk 0:02:37.5]}
8... Bd6 {[%clk 0:02:48.4]} 9. Bg2 {[%clk 0:02:37.6]} 9... Qe7 {[%clk
0:02:41.6]} 10. g5 {[%clk 0:02:22.1]} 10... Ne4 {[%clk 0:02:38.8]} 11. h4 {[%clk
0:02:20.3]} 11... Ne5 {[%clk 0:02:27.9]} 12. Qe2 {[%clk 0:02:15.9]} 12... f6
{[%clk 0:01:29.2]} 13. Nc3 {[%clk 0:01:32.6]} 13... Nxc3 {[%clk 0:00:58.7]} 14.
Bxc3 {[%clk 0:01:32.3]} 14... dxc4 {[%clk 0:00:51.2]} 15. bxc4 {[%clk
0:01:31.7]} 15... Nf7 {[%clk 0:00:49]} 16. gxf6 {[%clk 0:01:14]} 16... gxf6
{[%clk 0:00:49.9]} 17. Rb1 {[%clk 0:01:14.5]} 17... e5 {[%clk 0:00:35.6]} 18.
Bh3 {[%clk 0:01:12.7]} 18... O-O {[%clk 0:00:31.6]} 19. Qh5 {[%clk 0:01:12.2]}
19... Kh8 {[%clk 0:00:30.9]} 20. Bf5 {[%clk 0:01:11.6]} 20... Nd8 {[%clk
0:00:29.2]} 21. Ke2 {[%clk 0:01:07.7]} 21... Ne6 {[%clk 0:00:29.5]} 22. Rhg1
{[%clk 0:00:58]} 22... Rg8 {[%clk 0:00:29.3]} 23. Bc2 {[%clk 0:00:30.9]} 23...
Nd4+ {[%clk 0:00:27.3]} 24. Bxd4 {[%clk 0:00:25.1]} 24... exd4 {[%clk
0:00:28.2]} 25. Qf5 {[%clk 0:00:23.2]} 25... Rad8 {[%clk 0:00:22.2]} 26. Bd3
{[%clk 0:00:18.7]} 26... b6 {[%clk 0:00:20.6]} 27. a4 {[%clk 0:00:18.1]} 27...
Rxg1 {[%clk 0:00:19.9]} 28. Rxg1 {[%clk 0:00:18]} 28... Rg8 {[%clk 0:00:20.7]}
29. Rxg8+ {[%clk 0:00:18.2]} 29... Kxg8 {[%clk 0:00:21.6]} 30. Qc8+ {[%clk
0:00:18.8]} 30... Kg7 {[%clk 0:00:21.1]} 31. Qxc6 {[%clk 0:00:19.3]} 31... dxe3
{[%clk 0:00:19.6]} 32. fxe3 {[%clk 0:00:19.7]} 32... Bb4 {[%clk 0:00:16.4]} 33.
Qg2+ {[%clk 0:00:19.5]} 33... Kf8 {[%clk 0:00:15.6]} 34. Qd5 {[%clk 0:00:18]}
34... Qd6 {[%clk 0:00:12.9]} 35. Qxd6+ {[%clk 0:00:17.7]} 35... Bxd6 {[%clk
0:00:12.2]} 36. Bxh7 {[%clk 0:00:18.6]} 36... Kg7 {[%clk 0:00:12.1]} 37. Bf5
{[%clk 0:00:19.1]} 37... Kh6 {[%clk 0:00:12.4]} 38. Bg4 {[%clk 0:00:18.5]} 38...
Kg6 {[%clk 0:00:13]} 39. d4 {[%clk 0:00:17]} 39... f5 {[%clk 0:00:13]} 40. Bf3
{[%clk 0:00:17.5]} 40... Be7 {[%clk 0:00:10.7]} 41. h5+ {[%clk 0:00:17.8]} 41...
Kg5 {[%clk 0:00:11]} 42. Kd3 {[%clk 0:00:18.2]} 42... a5 {[%clk 0:00:09]} 43.
Bd1 {[%clk 0:00:17.9]} 43... Bf8 {[%clk 0:00:07.4]} 44. e4 {[%clk 0:00:18.2]}
44... fxe4+ {[%clk 0:00:07]} 45. Kxe4 {[%clk 0:00:19.1]} 45... Kf6 {[%clk
0:00:07.1]} 46. Kd5 {[%clk 0:00:19.5]} 46... Kf5 {[%clk 0:00:05.1]} 47. c5
{[%clk 0:00:18.2]} 47... bxc5 {[%clk 0:00:04.7]} 48. dxc5 {[%clk 0:00:19.1]}
48... Kf6 {[%clk 0:00:02.8]} 49. Kc6 {[%clk 0:00:18.8]} 49... Ke7 {[%clk
0:00:03.1]} 50. Kb7 {[%clk 0:00:18.8]} 1-0

[Event "Early-Titled-Tuesday-Blitz-August-29-2023"]
[Site "Chess.com"]
[Date "2023.08.29"]
[Round "1"]
[White "GeorgiosSouleidis"]
[Black "Nbk90"]
[Result "1-0"]
[WhiteElo "2561"]
[BlackElo "2118"]
[TimeControl "180+1"]
[EndTime "8:07:43 PDT"]
[Termination "GeorgiosSouleidis won on time"]

1. e4 {[%clk 0:02:59.9]} 1... e6 {[%clk 0:02:53.5]} 2. d4 {[%clk 0:02:59.2]}
2... d5 {[%clk 0:02:53.3]} 3. Nc3 {[%clk 0:02:59.4]} 3... Bb4 {[%clk 0:02:53]}
4. Ne2 {[%clk 0:02:58.4]} 4... Nc6 {[%clk 0:02:52.4]} 5. exd5 {[%clk 0:02:48.1]}
5... exd5 {[%clk 0:02:51.6]} 6. a3 {[%clk 0:02:48.1]} 6... Ba5 {[%clk 0:02:47]}
7. Nf4 {[%clk 0:02:33.2]} 7... Nf6 {[%clk 0:02:22.2]} 8. Be2 {[%clk 0:02:33]}
8... O-O {[%clk 0:02:18.2]} 9. O-O {[%clk 0:02:33]} 9... Bb6 {[%clk 0:02:14.7]}
10. Be3 {[%clk 0:02:31.9]} 10... Ne7 {[%clk 0:01:46.3]} 11. Na4 {[%clk
0:01:54.7]} 11... c6 {[%clk 0:01:44.9]} 12. Nxb6 {[%clk 0:01:54.6]} 12... axb6
{[%clk 0:01:35.9]} 13. c3 {[%clk 0:01:47.7]} 13... Nf5 {[%clk 0:01:34.1]} 14.
Bc1 {[%clk 0:00:31.6]} 14... Re8 {[%clk 0:01:33.6]} 15. Nd3 {[%clk 0:00:29.9]}
15... Qd6 {[%clk 0:01:30.2]} 16. Bf4 {[%clk 0:00:27.9]} 16... Qd8 {[%clk
0:01:25.2]} 17. Bf3 {[%clk 0:00:26.7]} 17... Ne4 {[%clk 0:01:24.7]} 18. Re1
{[%clk 0:00:20.2]} 18... Bd7 {[%clk 0:01:16.3]} 19. Ne5 {[%clk 0:00:19.5]} 19...
Nfd6 {[%clk 0:01:06.4]} 20. h3 {[%clk 0:00:18]} 20... Bf5 {[%clk 0:01:02.3]} 21.
Bh2 {[%clk 0:00:17.3]} 21... f6 {[%clk 0:00:59.6]} 22. Nd3 {[%clk 0:00:16.5]}
22... Nc4 {[%clk 0:00:59.3]} 23. a4 {[%clk 0:00:13.8]} 23... Kh8 {[%clk
0:00:53.6]} 24. Nb4 {[%clk 0:00:04.3]} 24... Nxb2 {[%clk 0:00:46.3]} 25. Qb3
{[%clk 0:00:04.4]} 25... Nc4 {[%clk 0:00:41.8]} 26. Bxe4 {[%clk 0:00:03.3]}
26... Bxe4 {[%clk 0:00:32.5]} 27. Na2 {[%clk 0:00:03.2]} 27... Qd7 {[%clk
0:00:30.7]} 28. Nc1 {[%clk 0:00:03.2]} 28... h5 {[%clk 0:00:14.6]} 29. Ne2
{[%clk 0:00:03.4]} 29... Bd3 {[%clk 0:00:09.9]} 30. Qd1 {[%clk 0:00:03.4]} 30...
Bxe2 {[%clk 0:00:05.5]} 31. Rxe2 {[%clk 0:00:04.3]} 31... Rxe2 {[%clk
0:00:05.4]} 32. Qxe2 {[%clk 0:00:05.2]} 32... Re8 {[%clk 0:00:06]} 33. Qxh5+
{[%clk 0:00:05.2]} 33... Kg8 {[%clk 0:00:06]} 34. Bg3 {[%clk 0:00:05.6]} 34...
Qe6 {[%clk 0:00:06]} 35. Qf3 {[%clk 0:00:05.4]} 35... Qe4 {[%clk 0:00:05.8]} 36.
Qh5 {[%clk 0:00:05.2]} 36... Qe6 {[%clk 0:00:02.5]} 37. Kh2 {[%clk 0:00:05.2]}
37... Na5 {[%clk 0:00:02.4]} 38. f3 {[%clk 0:00:05.5]} 38... Nc4 {[%clk
0:00:02.4]} 39. Re1 {[%clk 0:00:06]} 1-0

[Event "Early-Titled-Tuesday-Blitz-August-29-2023"]
[Site "Chess.com"]
[Date "2023.08.29"]
[Round "1"]
[White "Dmitry_Konenkin"]
[Black "hitaman"]
[Result "0-1"]
[WhiteElo "2386"]
[BlackElo "2704"]
[TimeControl "180+1"]
[EndTime "8:07:46 PDT"]
[Termination "hitaman won by resignation"]

1. d4 {[%clk 0:02:54.8]} 1... Nf6 {[%clk 0:02:58.9]} 2. Bg5 {[%clk 0:02:54.6]}
2... e6 {[%clk 0:02:53.7]} 3. e4 {[%clk 0:02:54.3]} 3... h6 {[%clk 0:02:53]} 4.
Bxf6 {[%clk 0:02:54.3]} 4... Qxf6 {[%clk 0:02:53.9]} 5. Nc3 {[%clk 0:02:54.5]}
5... d6 {[%clk 0:02:52.3]} 6. Qd2 {[%clk 0:02:54.6]} 6... g6 {[%clk 0:02:51.1]}
7. O-O-O {[%clk 0:02:54.8]} 7... Bg7 {[%clk 0:02:51]} 8. f4 {[%clk 0:02:54.6]}
8... c6 {[%clk 0:02:41.3]} 9. Nf3 {[%clk 0:02:54.5]} 9... Nd7 {[%clk 0:02:40.4]}
10. g4 {[%clk 0:02:50]} 10... g5 {[%clk 0:02:28.9]} 11. f5 {[%clk 0:02:38.8]}
11... e5 {[%clk 0:02:05.8]} 12. dxe5 {[%clk 0:02:30.2]} 12... Nxe5 {[%clk
0:02:02.5]} 13. Nxe5 {[%clk 0:02:27.9]} 13... Qxe5 {[%clk 0:01:55.3]} 14. Qxd6
{[%clk 0:02:18.7]} 14... Qxd6 {[%clk 0:01:56.2]} 15. Rxd6 {[%clk 0:02:18.7]}
15... Be5 {[%clk 0:01:46.5]} 16. Rd3 {[%clk 0:02:06.3]} 16... Bd7 {[%clk
0:01:24.1]} 17. Bg2 {[%clk 0:01:48.1]} 17... Ke7 {[%clk 0:01:23.8]} 18. h3
{[%clk 0:01:43.3]} 18... Rad8 {[%clk 0:01:18.5]} 19. Rhd1 {[%clk 0:01:43.3]}
19... h5 {[%clk 0:01:12.2]} 20. Bf3 {[%clk 0:01:08.4]} 20... hxg4 {[%clk
0:01:11]} 21. Bxg4 {[%clk 0:00:59]} 21... f6 {[%clk 0:01:04.9]} 22. Ne2 {[%clk
0:00:58.1]} 22... Bc8 {[%clk 0:00:55.1]} 23. c3 {[%clk 0:00:39.3]} 23... Rxd3
{[%clk 0:00:44.5]} 24. Rxd3 {[%clk 0:00:40.2]} 24... c5 {[%clk 0:00:43.6]} 25.
Kc2 {[%clk 0:00:35.2]} 25... b5 {[%clk 0:00:40.5]} 26. Ng1 {[%clk 0:00:34.8]}
26... Bb7 {[%clk 0:00:39.3]} 27. Re3 {[%clk 0:00:30.7]} 27... Bf4 {[%clk
0:00:38.8]} 28. Re2 {[%clk 0:00:30.3]} 28... Re8 {[%clk 0:00:35.5]} 29. Bh5
{[%clk 0:00:25.4]} 29... Rh8 {[%clk 0:00:34.2]} 30. Bg4 {[%clk 0:00:25.8]} 30...
Kd6 {[%clk 0:00:34.1]} 31. Nf3 {[%clk 0:00:21.9]} 31... Re8 {[%clk 0:00:33.8]}
32. Nd2 {[%clk 0:00:20.1]} 32... Bxd2 {[%clk 0:00:21.3]} 33. Rxd2+ {[%clk
0:00:21]} 33... Kc7 {[%clk 0:00:20.6]} 34. Re2 {[%clk 0:00:12.5]} 34... Rxe4
{[%clk 0:00:17.6]} 35. Kd3 {[%clk 0:00:09.9]} 35... Rxe2 {[%clk 0:00:16.7]} 36.
Kxe2 {[%clk 0:00:10.8]} 36... Kd6 {[%clk 0:00:17.3]} 37. Ke3 {[%clk 0:00:06.5]}
37... Ke5 {[%clk 0:00:17.3]} 38. b3 {[%clk 0:00:03.4]} 38... b4 {[%clk
0:00:16.3]} 39. cxb4 {[%clk 0:00:03.5]} 39... cxb4 {[%clk 0:00:16.6]} 40. Kd3
{[%clk 0:00:04.4]} 40... Be4+ {[%clk 0:00:13.9]} 41. Kc4 {[%clk 0:00:04.5]}
41... Bxf5 {[%clk 0:00:14.1]} 42. Kxb4 {[%clk 0:00:01]} 42... Bxg4 {[%clk
0:00:13.9]} 43. hxg4 {[%clk 0:00:01.9]} 43... f5 {[%clk 0:00:14.7]} 44. gxf5
{[%clk 0:00:01.8]} 44... Kxf5 {[%clk 0:00:14.8]} 45. Kc5 {[%clk 0:00:02.1]}
45... g4 {[%clk 0:00:14.7]} 46. Kd4 {[%clk 0:00:01.9]} 46... g3 {[%clk
0:00:15.6]} 47. Ke3 {[%clk 0:00:01.5]} 47... Kg4 {[%clk 0:00:15.4]} 48. Ke2
{[%clk 0:00:01.7]} 48... Kh3 {[%clk 0:00:15.9]} 49. Kf1 {[%clk 0:00:02.3]} 49...
Kh2 {[%clk 0:00:16.5]} 50. Ke2 {[%clk 0:00:02.9]} 50... g2 {[%clk 0:00:16.9]}
51. Kd3 {[%clk 0:00:03.8]} 51... g1=Q {[%clk 0:00:17]} 52. Kc3 {[%clk
0:00:04.7]} 52... Qc5+ {[%clk 0:00:16.5]} 0-1

[Event "Early-Titled-Tuesday-Blitz-August-29-2023"]
[Site "Chess.com"]
[Date "2023.08.29"]
[Round "1"]
[White "Gyulamiryan-koryun"]
[Black "likantrophuss"]
[Result "0-1"]
[WhiteElo "2059"]
[BlackElo "2546"]
[TimeControl "180+1"]
[EndTime "8:07:48 PDT"]
[Termination "likantrophuss won by resignation"]

1. d4 {[%clk 0:02:56.2]} 1... Nf6 {[%clk 0:02:59.4]} 2. c4 {[%clk 0:02:51.8]}
2... e6 {[%clk 0:02:59.5]} 3. Nf3 {[%clk 0:02:51.5]} 3... d5 {[%clk 0:02:59.2]}
4. g3 {[%clk 0:02:50.6]} 4... Bb4+ {[%clk 0:02:55.5]} 5. Bd2 {[%clk 0:02:43.2]}
5... Bxd2+ {[%clk 0:02:54.4]} 6. Nbxd2 {[%clk 0:02:44.1]} 6... O-O {[%clk
0:02:53.7]} 7. Bg2 {[%clk 0:02:43.8]} 7... b6 {[%clk 0:02:48.8]} 8. O-O {[%clk
0:02:41.9]} 8... Bb7 {[%clk 0:02:48.5]} 9. Qc2 {[%clk 0:02:42]} 9... dxc4 {[%clk
0:02:46.2]} 10. Qxc4 {[%clk 0:02:40.9]} 10... Nbd7 {[%clk 0:02:45.4]} 11. Rac1
{[%clk 0:02:39.9]} 11... Rc8 {[%clk 0:02:44.7]} 12. Rfd1 {[%clk 0:02:38.6]}
12... Qe7 {[%clk 0:02:41]} 13. Qa4 {[%clk 0:02:34.5]} 13... a6 {[%clk
0:02:39.4]} 14. Ne5 {[%clk 0:02:10.7]} 14... Bxg2 {[%clk 0:02:37.9]} 15. Nxd7
{[%clk 0:02:03.3]} 15... Qxd7 {[%clk 0:02:26.2]} 16. Qxd7 {[%clk 0:02:02.5]}
16... Nxd7 {[%clk 0:02:27.1]} 17. Kxg2 {[%clk 0:02:02.8]} 17... Rfd8 {[%clk
0:02:21.1]} 18. e4 {[%clk 0:01:57.9]} 18... Nf6 {[%clk 0:02:03.7]} 19. e5 {[%clk
0:01:41.5]} 19... Ng4 {[%clk 0:01:47.4]} 20. Ne4 {[%clk 0:01:32.6]} 20... Nh6
{[%clk 0:01:44.6]} 21. Nc3 {[%clk 0:00:53]} 21... Nf5 {[%clk 0:01:39.9]} 22. Ne2
{[%clk 0:00:53.1]} 22... h5 {[%clk 0:01:20.8]} 23. h3 {[%clk 0:00:52.9]} 23...
Rd7 {[%clk 0:00:54.7]} 24. g4 {[%clk 0:00:50.9]} 24... hxg4 {[%clk 0:00:54.2]}
25. hxg4 {[%clk 0:00:51.2]} 25... Ne7 {[%clk 0:00:54.8]} 26. Kf3 {[%clk
0:00:42.5]} 26... Rcd8 {[%clk 0:00:53.7]} 27. Ke4 {[%clk 0:00:40.9]} 27... c5
{[%clk 0:00:50.5]} 28. Rd2 {[%clk 0:00:27.8]} 28... Nc6 {[%clk 0:00:41.2]} 29.
Rcd1 {[%clk 0:00:27.6]} 29... Rd5 {[%clk 0:00:39.3]} 30. f4 {[%clk 0:00:25.8]}
30... g5 {[%clk 0:00:38]} 31. Ke3 {[%clk 0:00:10.4]} 31... cxd4+ {[%clk
0:00:35.1]} 32. Nxd4 {[%clk 0:00:07.9]} 32... gxf4+ {[%clk 0:00:35.5]} 33. Ke4
{[%clk 0:00:08]} 33... Rxe5+ {[%clk 0:00:35.4]} 34. Kxf4 {[%clk 0:00:07.8]}
34... Red5 {[%clk 0:00:31.8]} 35. Ke4 {[%clk 0:00:05.9]} 35... Nxd4 {[%clk
0:00:25]} 36. Rxd4 {[%clk 0:00:05.9]} 36... f5+ {[%clk 0:00:20.5]} 37. gxf5
{[%clk 0:00:04.9]} 37... exf5+ {[%clk 0:00:21.4]} 38. Ke3 {[%clk 0:00:04.2]}
38... Rxd4 {[%clk 0:00:19.6]} 39. Rxd4 {[%clk 0:00:03.9]} 39... Rxd4 {[%clk
0:00:20.5]} 40. Kxd4 {[%clk 0:00:04.1]} 40... Kf7 {[%clk 0:00:20.8]} 41. Ke5
{[%clk 0:00:03]} 41... Kg6 {[%clk 0:00:21.1]} 42. Kf4 {[%clk 0:00:03.3]} 42...
Kf6 {[%clk 0:00:21.5]} 43. a3 {[%clk 0:00:03]} 43... Ke6 {[%clk 0:00:20.5]} 44.
b3 {[%clk 0:00:03.9]} 44... Kf6 {[%clk 0:00:20.5]} 45. a4 {[%clk 0:00:03.9]}
45... Ke6 {[%clk 0:00:20.4]} 46. b4 {[%clk 0:00:04.2]} 46... Kf6 {[%clk
0:00:20.8]} 47. a5 {[%clk 0:00:04.1]} 47... b5 {[%clk 0:00:20.7]} 48. Ke3 {[%clk
0:00:04.5]} 48... Ke5 {[%clk 0:00:21]} 49. Kf3 {[%clk 0:00:05]} 49... Kd4 {[%clk
0:00:20.6]} 50. Kf4 {[%clk 0:00:05.3]} 50... Kc4 {[%clk 0:00:21.2]} 51. Kxf5
{[%clk 0:00:05.8]} 51... Kxb4 {[%clk 0:00:22.1]} 0-1

[Event "Early-Titled-Tuesday-Blitz-August-29-2023"]
[Site "Chess.com"]
[Date "2023.08.29"]
[Round "1"]
[White "FARIZA2018"]
[Black "abhidabhi"]
[Result "1-0"]
[WhiteElo "2511"]
[BlackElo "2901"]
[TimeControl "180+1"]
[EndTime "8:07:49 PDT"]
[Termination "FARIZA2018 won by resignation"]

1. e4 {[%clk 0:03:00.9]} 1... c5 {[%clk 0:02:59.2]} 2. Nf3 {[%clk 0:02:59.7]}
2... Nc6 {[%clk 0:02:59.8]} 3. d4 {[%clk 0:02:59.5]} 3... cxd4 {[%clk
0:03:00.6]} 4. Nxd4 {[%clk 0:02:59.7]} 4... Nf6 {[%clk 0:03:01.2]} 5. Nc3 {[%clk
0:02:59.5]} 5... d6 {[%clk 0:03:01.9]} 6. Bg5 {[%clk 0:02:57.5]} 6... Bd7 {[%clk
0:03:02.2]} 7. Qd2 {[%clk 0:02:54.2]} 7... a6 {[%clk 0:03:02.4]} 8. O-O-O {[%clk
0:02:53.9]} 8... e6 {[%clk 0:03:02.5]} 9. f3 {[%clk 0:02:49.5]} 9... Nxd4 {[%clk
0:03:00.8]} 10. Qxd4 {[%clk 0:02:49.2]} 10... Be7 {[%clk 0:03:01.2]} 11. h4
{[%clk 0:02:47]} 11... Qc7 {[%clk 0:02:58.9]} 12. Kb1 {[%clk 0:02:46.6]} 12...
b5 {[%clk 0:02:54.8]} 13. g4 {[%clk 0:02:31.4]} 13... Rc8 {[%clk 0:02:47.3]} 14.
Bd3 {[%clk 0:02:31]} 14... e5 {[%clk 0:02:44.3]} 15. Qe3 {[%clk 0:02:21.2]}
15... b4 {[%clk 0:02:39.6]} 16. Ne2 {[%clk 0:01:59.6]} 16... a5 {[%clk
0:02:39.3]} 17. Bxf6 {[%clk 0:01:57.7]} 17... Bxf6 {[%clk 0:02:35]} 18. g5
{[%clk 0:01:57.9]} 18... Be7 {[%clk 0:02:35]} 19. f4 {[%clk 0:01:55.8]} 19... a4
{[%clk 0:02:30.6]} 20. f5 {[%clk 0:01:53.4]} 20... Qc5 {[%clk 0:02:13.8]} 21.
Qd2 {[%clk 0:01:42.3]} 21... Bc6 {[%clk 0:02:02.2]} 22. Rdf1 {[%clk 0:01:34.5]}
22... d5 {[%clk 0:01:55]} 23. Ng3 {[%clk 0:01:32.5]} 23... a3 {[%clk 0:01:50.2]}
24. f6 {[%clk 0:01:30.1]} 24... gxf6 {[%clk 0:01:36.1]} 25. gxf6 {[%clk
0:01:30]} 25... Bf8 {[%clk 0:01:35.7]} 26. exd5 {[%clk 0:01:04.3]} 26... Bxd5
{[%clk 0:01:27]} 27. Be4 {[%clk 0:01:04]} 27... Bh6 {[%clk 0:01:18.7]} 28. Qxd5
{[%clk 0:00:58.8]} 28... Qxd5 {[%clk 0:01:11.3]} 29. Bxd5 {[%clk 0:00:58.9]}
29... axb2 {[%clk 0:01:11.7]} 30. Nf5 {[%clk 0:00:58.1]} 30... Rc5 {[%clk
0:01:10]} 31. Bxf7+ {[%clk 0:00:55.8]} 31... Kxf7 {[%clk 0:01:09.7]} 32. Nxh6+
{[%clk 0:00:56.4]} 32... Kg6 {[%clk 0:01:08.5]} 33. Ng4 {[%clk 0:00:54.8]} 33...
h5 {[%clk 0:01:06.5]} 34. Ne3 {[%clk 0:00:48.3]} 34... Kf7 {[%clk 0:01:02.1]}
35. Rhg1 {[%clk 0:00:48.2]} 35... Rh7 {[%clk 0:01:02.4]} 36. Rg5 {[%clk
0:00:45.3]} 36... Rc6 {[%clk 0:00:59.7]} 37. Nd5 {[%clk 0:00:41]} 37... Ke6
{[%clk 0:00:55.9]} 38. Nxb4 {[%clk 0:00:31.7]} 38... Rc4 {[%clk 0:00:53.8]} 39.
Nd3 {[%clk 0:00:31.5]} 39... e4 {[%clk 0:00:50.9]} 40. Nf4+ {[%clk 0:00:30.8]}
40... Kxf6 {[%clk 0:00:48.2]} 41. Nxh5+ {[%clk 0:00:27.8]} 41... Ke6 {[%clk
0:00:46.4]} 42. Rf6+ {[%clk 0:00:26.2]} 42... Kd7 {[%clk 0:00:45.9]} 43. Ra6
{[%clk 0:00:23.5]} 43... Re7 {[%clk 0:00:37.2]} 44. Nf6+ {[%clk 0:00:23.4]}
44... Kc8 {[%clk 0:00:36.8]} 45. Rb5 {[%clk 0:00:20.4]} 45... Kd8 {[%clk
0:00:19]} 46. Ra8+ {[%clk 0:00:19.9]} 46... Rc8 {[%clk 0:00:18.6]} 47. Rd5+
{[%clk 0:00:18.9]} 47... Kc7 {[%clk 0:00:19.3]} 48. Rc5+ {[%clk 0:00:18.9]}
48... Kb7 {[%clk 0:00:20.2]} 49. Raxc8 {[%clk 0:00:18.9]} 49... e3 {[%clk
0:00:21.1]} 50. Re8 {[%clk 0:00:12.8]} 1-0